fUSD/lending_fUSD_20260501
["ID","MTS","AMOUNT","RATE_DAILY","PERIOD"]
[421431990,1777641032000,-102.69594529,8.728e-05,2]
[421431985,1777641032000,-1200.0,8.727e-05,2]
[421431984,1777641032000,-154.47,8.71e-05,2]
[421431993,1777641032000,-393.88883411,8.728e-05,2]
[421431992,1777641032000,-88.11116589,8.728e-05,2]
[421431994,1777641032000,-106.11116589,8.728e-05,2]
[421432040,1777641032000,-500.0,8.729e-05,2]
[421431995,1777641032000,-428.22931779,8.729e-05,2]
[421431996,1777641032000,-500.0,8.729e-05,2]
[421431997,1777641032000,-201.5590213,8.729e-05,2]
[421431999,1777641032000,-504.76675914,8.729e-05,2]
[421432000,1777641032000,-70.4333359,8.729e-05,2]
[421431998,1777641032000,-500.0,8.729e-05,2]
[421432001,1777641032000,-264.88544588,8.729e-05,2]
[421432003,1777641032000,-500.0,8.729e-05,2]
[421432011,1777641032000,-500.0,8.729e-05,2]
[421432005,1777641032000,-500.0,8.729e-05,2]
[421432035,1777641032000,-500.0,8.729e-05,2]
[421432078,1777641032000,-500.0,8.729e-05,2]
[421432044,1777641032000,-500.0,8.729e-05,2]
[421432072,1777641032000,-500.0,8.729e-05,2]
[421432075,1777641032000,-500.0,8.729e-05,2]
[421432077,1777641032000,-500.0,8.729e-05,2]
[421432079,1777641032000,-500.0,8.729e-05,2]
[421432087,1777641032000,-500.0,8.729e-05,2]
[421432088,1777641032000,-500.0,8.729e-05,2]
[421432089,1777641032000,-500.0,8.729e-05,2]
[421432080,1777641032000,-500.0,8.729e-05,2]
[421432082,1777641032000,-500.0,8.729e-05,2]
[421432090,1777641032000,-500.0,8.729e-05,2]
[421432081,1777641032000,-500.0,8.729e-05,2]
[421432083,1777641032000,-500.0,8.729e-05,2]
[421432086,1777641032000,-500.0,8.729e-05,2]
[421432084,1777641032000,-500.0,8.729e-05,2]
[421432095,1777641032000,-500.0,8.729e-05,2]
[421432100,1777641032000,-6787.8403,8.73e-05,2]
[421432098,1777641032000,-500.0,8.729e-05,2]
[421432092,1777641032000,-500.0,8.729e-05,2]
[421432091,1777641032000,-500.0,8.729e-05,2]
[421432097,1777641032000,-500.0,8.729e-05,2]
[421432099,1777641032000,-501490.7436,8.73e-05,2]
[421432093,1777641032000,-650.0,8.729e-05,2]
[421432094,1777641032000,-500.0,8.729e-05,2]
[421432096,1777641032000,-500.0,8.729e-05,2]
[421432045,1777641032000,-500.0,8.729e-05,2]
[421432074,1777641032000,-500.0,8.729e-05,2]
[421432071,1777641032000,-500.0,8.729e-05,2]
[421432085,1777641032000,-500.0,8.729e-05,2]
[421432067,1777641032000,-500.0,8.729e-05,2]
[421432073,1777641032000,-500.0,8.729e-05,2]
[421432047,1777641032000,-500.0,8.729e-05,2]
[421432046,1777641032000,-500.0,8.729e-05,2]
[421432052,1777641032000,-484.02710883,8.729e-05,2]
[421432053,1777641032000,-500.0,8.729e-05,2]
[421432051,1777641032000,-500.0,8.729e-05,2]
[421432050,1777641032000,-500.0,8.729e-05,2]
[421432048,1777641032000,-500.0,8.729e-05,2]
[421432054,1777641032000,-500.0,8.729e-05,2]
[421432064,1777641032000,-500.0,8.729e-05,2]
[421432049,1777641032000,-500.0,8.729e-05,2]
[421432056,1777641032000,-500.0,8.729e-05,2]
[421432057,1777641032000,-500.0,8.729e-05,2]
[421432066,1777641032000,-500.0,8.729e-05,2]
[421432076,1777641032000,-500.0,8.729e-05,2]
[421432070,1777641032000,-500.0,8.729e-05,2]
[421432055,1777641032000,-500.0,8.729e-05,2]
[421432068,1777641032000,-500.0,8.729e-05,2]
[421432062,1777641032000,-500.0,8.729e-05,2]
[421432060,1777641032000,-500.0,8.729e-05,2]
[421432069,1777641032000,-500.0,8.729e-05,2]
[421432065,1777641032000,-500.0,8.729e-05,2]
[421432059,1777641032000,-500.0,8.729e-05,2]
[421432061,1777641032000,-500.0,8.729e-05,2]
[421432063,1777641032000,-500.0,8.729e-05,2]
[421432058,1777641032000,-500.0,8.729e-05,2]
[421432109,1777641033000,-521.31,8.735e-05,2]
[421432101,1777641033000,-2500.0,8.73e-05,2]
[421432102,1777641033000,-2139.5599454,8.73e-05,2]
[421432103,1777641033000,-500.0,8.735e-05,2]
[421432105,1777641033000,-150.99,8.735e-05,2]
[421432104,1777641033000,-299.99,8.735e-05,2]
[421432114,1777641033000,-151.0,8.827e-05,2]
[421432113,1777641033000,-151.0,8.827e-05,2]
[421432112,1777641033000,-769.47,8.795e-05,2]
[421432116,1777641033000,-236.982,8.828e-05,2]
[421432107,1777641033000,-9999.99,8.735e-05,2]
[421432106,1777641033000,-9999.99,8.735e-05,2]
[421432108,1777641033000,-21279.48,8.735e-05,2]
[421432110,1777641033000,-999.99,8.735e-05,2]
[421432115,1777641033000,-3129.028,8.828e-05,2]
[421432117,1777641033000,-12283.15982948,8.839e-05,2]
[421432118,1777641033000,-1705.55759253,8.839e-05,2]
[421432119,1777641033000,-2174.50212326,8.839e-05,2]
[421432111,1777641033000,-194.37507972,8.766e-05,2]
[421432138,1777641039000,-500.0,9.178e-05,2]
[421432136,1777641039000,-500.0,9.178e-05,2]
[421432130,1777641039000,-167.41,8.87e-05,2]
[421432133,1777641039000,-154.95,9.157e-05,2]
[421432137,1777641039000,-500.0,9.178e-05,2]
[421432135,1777641039000,-187.53534978,9.178e-05,2]
[421432129,1777641039000,-153.87363941,8.839e-05,2]
[421432140,1777641039000,-500.0,9.178e-05,2]
[421432139,1777641039000,-500.0,9.178e-05,2]
[421432134,1777641039000,-150.0,9.178e-05,2]
[421432132,1777641039000,-167.41,9.147e-05,2]
[421432128,1777641039000,-6202.79835473,8.839e-05,2]
[421432149,1777641039000,-150.0,9.178e-05,2]
[421432131,1777641039000,-17202.15311806,9.086e-05,2]
[421432150,1777641039000,-193.13337352,9.178e-05,2]
[421432154,1777641039000,-500.0,9.178e-05,2]
[421432141,1777641039000,-500.0,9.178e-05,2]
[421432142,1777641039000,-500.0,9.178e-05,2]
[421432157,1777641039000,-500.0,9.178e-05,2]
[421432156,1777641039000,-500.0,9.178e-05,2]
[421432159,1777641039000,-500.0,9.178e-05,2]
[421432158,1777641039000,-500.0,9.178e-05,2]
[421432147,1777641039000,-150.0,9.178e-05,2]
[421432151,1777641039000,-500.0,9.178e-05,2]
[421432155,1777641039000,-500.0,9.178e-05,2]
[421432153,1777641039000,-500.0,9.178e-05,2]
[421432144,1777641039000,-500.0,9.178e-05,2]
[421432146,1777641039000,-444.37813572,9.178e-05,2]
[421432143,1777641039000,-500.0,9.178e-05,2]
[421432152,1777641039000,-500.0,9.178e-05,2]
[421432145,1777641039000,-150.0,9.178e-05,2]
[421432148,1777641039000,-150.0,9.178e-05,2]
[421432208,1777641040000,-9552.16786547,9.799e-05,2]
[421432211,1777641040000,-721.12765535,9.799e-05,2]
[421432206,1777641040000,-578.20924308,9.799e-05,2]
[421432204,1777641040000,-214.67264477,9.773e-05,2]
[421432202,1777641040000,-167.41,9.701e-05,2]
[421432200,1777641040000,-1852.42,9.603e-05,2]
[421432188,1777641040000,-319.8493573,9.517e-05,2]
[421432212,1777641040000,-743.50770149,9.799e-05,2]
[421432209,1777641040000,-200.0,9.799e-05,2]
[421432214,1777641040000,-151.0,9.799e-05,2]
[421432218,1777641040000,-346.79042892,9.799e-05,2]
[421432217,1777641040000,-174.61919141,9.799e-05,2]
[421432224,1777641040000,-1897.916696,9.909e-05,2]
[421432215,1777641040000,-209.40437684,9.799e-05,2]
[421432221,1777641040000,-9905.5980765,9.854e-05,2]
[421432219,1777641040000,-290.26104003,9.799e-05,2]
[421432194,1777641040000,-155.0,9.6e-05,2]
[421432220,1777641040000,-201.93286099,9.799e-05,2]
[421432216,1777641040000,-151.0,9.799e-05,2]
[421432222,1777641040000,-151.0,9.854e-05,2]
[421432223,1777641040000,-220.63963395,9.873e-05,2]
[421432226,1777641040000,-1290.08569442,9.909e-05,2]
[421432213,1777641040000,-1428.38747117,9.799e-05,2]
[421432198,1777641040000,-1680.0,9.6e-05,2]
[421432174,1777641040000,-380.24,9.316e-05,2]
[421432192,1777641040000,-255.0,9.6e-05,2]
[421432225,1777641040000,-767.54052114,9.909e-05,2]
[421432167,1777641040000,-500.0,9.178e-05,2]
[421432161,1777641040000,-500.0,9.178e-05,2]
[421432165,1777641040000,-500.0,9.178e-05,2]
[421432166,1777641040000,-500.0,9.178e-05,2]
[421432168,1777641040000,-500.0,9.178e-05,2]
[421432163,1777641040000,-500.0,9.178e-05,2]
[421432164,1777641040000,-500.0,9.178e-05,2]
[421432160,1777641040000,-500.0,9.178e-05,2]
[421432170,1777641040000,-500.0,9.178e-05,2]
[421432196,1777641040000,-420.0,9.6e-05,2]
[421432182,1777641040000,-300.0,9.517e-05,2]
[421432184,1777641040000,-518.38811748,9.517e-05,2]
[421432186,1777641040000,-250.0,9.517e-05,2]
[421432171,1777641040000,-500.0,9.178e-05,2]
[421432175,1777641040000,-391.07,9.321e-05,2]
[421432172,1777641040000,-500.0,9.178e-05,2]
[421432173,1777641040000,-231.85832852,9.178e-05,2]
[421432176,1777641040000,-167.41,9.424e-05,2]
[421432179,1777641040000,-250.0,9.469e-05,2]
[421432178,1777641040000,-214.15527986,9.469e-05,2]
[421432190,1777641040000,-500.0,9.517e-05,2]
[421432169,1777641040000,-500.0,9.178e-05,2]
[421432227,1777641040000,-372.73608226,9.909e-05,2]
[421432255,1777641040000,-151.0,0.0001,2]
[421432230,1777641040000,-154.95,9.92e-05,2]
[421432262,1777641040000,-500.0,0.0001,2]
[421432263,1777641040000,-500.0,0.0001,2]
[421432261,1777641040000,-500.0,0.0001,2]
[421432257,1777641040000,-151.0,0.0001,2]
[421432259,1777641040000,-500.0,0.0001,2]
[421432260,1777641040000,-500.0,0.0001,2]
[421432264,1777641040000,-500.0,0.0001,2]
[421432266,1777641040000,-500.0,0.0001,2]
[421432267,1777641040000,-500.0,0.0001,2]
[421432272,1777641040000,-151.0,0.00010074,2]
[421432258,1777641040000,-500.0,0.0001,2]
[421432268,1777641040000,-500.0,0.0001,2]
[421432270,1777641040000,-151.0,0.00010019,2]
[421432274,1777641040000,-167.41,0.00010256,2]
[421432273,1777641040000,-1000.0,0.00010083,2]
[421432271,1777641040000,-158.99,0.00010048,2]
[421432269,1777641040000,-151.0,0.0001,2]
[421432276,1777641040000,-743.50770149,0.00010347,2]
[421432275,1777641040000,-200.0,0.00010347,2]
[421432277,1777641040000,-217.15233878,0.00010347,2]
[421432278,1777641040000,-181.08010149,0.00010347,2]
[421432228,1777641040000,-622.47395975,9.909e-05,2]
[421432265,1777641040000,-500.0,0.0001,2]
[421432254,1777641040000,-500.0,0.0001,2]
[421432279,1777641040000,-380.24,0.00010351,2]
[421432256,1777641040000,-500.0,0.0001,2]
[421432253,1777641040000,-151.0,0.0001,2]
[421432231,1777641040000,-151.0,9.964e-05,2]
[421432232,1777641040000,-167.41,9.978e-05,2]
[421432233,1777641040000,-346.35928332,0.0001,2]
[421432234,1777641040000,-500.0,0.0001,2]
[421432235,1777641040000,-151.0,0.0001,2]
[421432237,1777641040000,-151.0,0.0001,2]
[421432236,1777641040000,-500.0,0.0001,2]
[421432242,1777641040000,-151.0,0.0001,2]
[421432239,1777641040000,-64.80675693,0.0001,2]
[421432238,1777641040000,-500.0,0.0001,2]
[421432229,1777641040000,-151.0,9.909e-05,2]
[421432241,1777641040000,-500.0,0.0001,2]
[421432240,1777641040000,-86.19324307,0.0001,2]
[421432249,1777641040000,-151.0,0.0001,2]
[421432244,1777641040000,-404.57321307,0.0001,2]
[421432250,1777641040000,-500.0,0.0001,2]
[421432246,1777641040000,-500.0,0.0001,2]
[421432245,1777641040000,-151.0,0.0001,2]
[421432248,1777641040000,-500.0,0.0001,2]
[421432247,1777641040000,-151.0,0.0001,2]
[421432251,1777641040000,-151.0,0.0001,2]
[421432252,1777641040000,-500.0,0.0001,2]
[421432243,1777641040000,-95.42678693,0.0001,2]
[421432311,1777641041000,-433.0,0.0001056,2]
[421432310,1777641041000,-167.41,0.00010533,2]
[421432307,1777641041000,-500.0,0.00010521,2]
[421432314,1777641041000,-1267.0,0.00010586,2]
[421432308,1777641041000,-500.0,0.00010521,2]
[421432304,1777641041000,-500.0,0.00010521,2]
[421432309,1777641041000,-244.05684706,0.00010521,2]
[421432302,1777641041000,-500.0,0.00010521,2]
[421432305,1777641041000,-500.0,0.00010521,2]
[421432315,1777641041000,-6034.0,0.00010611,2]
[421432321,1777641041000,-207.26564957,0.000108,2]
[421432318,1777641041000,-229.64516561,0.000108,2]
[421432319,1777641041000,-273.2468497,0.000108,2]
[421432320,1777641041000,-169.10699663,0.000108,2]
[421432317,1777641041000,-154.95,0.00010683,2]
[421432323,1777641041000,-187.78006525,0.00010895,2]
[421432325,1777641041000,-776.35916358,0.00010915,2]
[421432322,1777641041000,-194.18489906,0.00010895,2]
[421432324,1777641041000,-1003.26573122,0.00010915,2]
[421432326,1777641041000,-463.14071928,0.00010915,2]
[421432313,1777641041000,-2351.0,0.0001056,2]
[421432316,1777641041000,-928.0,0.00010611,2]
[421432312,1777641041000,-587.0,0.0001056,2]
[421432298,1777641041000,-500.0,0.00010521,2]
[421432299,1777641041000,-500.0,0.00010521,2]
[421432286,1777641041000,-391.07,0.00010486,2]
[421432287,1777641041000,-500.0,0.00010521,2]
[421432284,1777641041000,-500.0,0.00010367,2]
[421432280,1777641041000,-500.0,0.00010356,2]
[421432282,1777641041000,-500.0,0.00010367,2]
[421432281,1777641041000,-500.0,0.00010356,2]
[421432283,1777641041000,-500.0,0.00010367,2]
[421432285,1777641041000,-166.67,0.00010379,2]
[421432288,1777641041000,-500.0,0.00010521,2]
[421432290,1777641041000,-500.0,0.00010521,2]
[421432291,1777641041000,-500.0,0.00010521,2]
[421432293,1777641041000,-500.0,0.00010521,2]
[421432296,1777641041000,-500.0,0.00010521,2]
[421432292,1777641041000,-500.0,0.00010521,2]
[421432297,1777641041000,-500.0,0.00010521,2]
[421432295,1777641041000,-500.0,0.00010521,2]
[421432327,1777641041000,-3559.38,0.00010917,2]
[421432294,1777641041000,-500.0,0.00010521,2]
[421432300,1777641041000,-500.0,0.00010521,2]
[421432301,1777641041000,-500.0,0.00010521,2]
[421432289,1777641041000,-500.0,0.00010521,2]
[421432303,1777641041000,-500.0,0.00010521,2]
[421432338,1777641041000,-1049.0,0.00010941,2]
[421432359,1777641041000,-222.22222,0.0001188,2]
[421432330,1777641041000,-150.0,0.00010941,2]
[421432355,1777641041000,-3559.38,0.00011736,2]
[421432328,1777641041000,-250.0,0.00010941,2]
[421432362,1777641041000,-326.47664118,0.000119,2]
[421432358,1777641041000,-200.0,0.00011853,2]
[421432361,1777641041000,-222.22223,0.0001189,2]
[421432360,1777641041000,-222.22222,0.0001188,2]
[421432363,1777641041000,-222.22222,0.0001191,2]
[421432365,1777641041000,-250.0,0.00011923,2]
[421432373,1777641041000,-123952.07607427,0.00012,2]
[421432364,1777641041000,-250.0,0.00011923,2]
[421432366,1777641041000,-622.86348549,0.00011973,2]
[421432367,1777641041000,-350.0,0.00011988,2]
[421432369,1777641041000,-201.93286099,0.00011991,2]
[421432371,1777641041000,-155.669,0.00011999,2]
[421432370,1777641041000,-151.0,0.00011997,2]
[421432368,1777641041000,-161.0,0.0001199,2]
[421432372,1777641041000,-250.0,0.00011999,2]
[421432374,1777641041000,-0.00058314,0.00012,2]
[421432375,1777641041000,-808.0336,0.00012,2]
[421432376,1777641041000,-774.295,0.00012,2]
[421432377,1777641041000,-389.415,0.00012,2]
[421432356,1777641041000,-708.83061346,0.0001176,2]
[421432357,1777641041000,-307.0,0.000118,2]
[421432353,1777641041000,-391.07,0.00011651,2]
[421432349,1777641041000,-3559.38,0.00011463,2]
[421432339,1777641041000,-500.0,0.00010959,2]
[421432340,1777641041000,-2101.0,0.00011,2]
[421432333,1777641041000,-166.535,0.00010941,2]
[421432332,1777641041000,-164.581,0.00010941,2]
[421432331,1777641041000,-150.827,0.00010941,2]
[421432329,1777641041000,-204.476,0.00010941,2]
[421432354,1777641041000,-350.0,0.00011689,2]
[421432337,1777641041000,-150.0,0.00010941,2]
[421432334,1777641041000,-250.565,0.00010941,2]
[421432336,1777641041000,-151.135,0.00010941,2]
[421432335,1777641041000,-184.164,0.00010941,2]
[421432350,1777641041000,-736.0,0.00011616,2]
[421432342,1777641041000,-278.30740097,0.00011099,2]
[421432347,1777641041000,-194.72792766,0.00011443,2]
[421432346,1777641041000,-380.24,0.00011386,2]
[421432345,1777641041000,-166.67,0.00011235,2]
[421432348,1777641041000,-154.95,0.00011446,2]
[421432344,1777641041000,-3559.38,0.0001119,2]
[421432343,1777641041000,-221.8815933,0.00011168,2]
[421432351,1777641041000,-823.0,0.00011616,2]
[421432352,1777641041000,-3292.0,0.00011616,2]
[421432341,1777641041000,-158.99,0.00011053,2]
[421432390,1777641043000,-344.0,0.00012,2]
[421432389,1777641043000,-3843.89820875,0.00012,2]
[421432388,1777641043000,-725.67013446,0.00012,2]
[421432385,1777641043000,-105.245761,0.00010634,2]
[421432387,1777641043000,-327.365286,0.00012,2]
[421432386,1777641043000,-8375.31083513,0.00012,2]
[421432384,1777641043000,-316.220239,0.00010634,2]
[421432395,1777641046000,-13057.40612796,0.00012,2]
[421432394,1777641046000,-472.55374231,0.0001176,2]
[421432396,1777641046000,-8712.00446723,0.00012,2]
[421432409,1777641088000,189.586,8.555e-05,2]
[421432408,1777641088000,2937.581,8.555e-05,2]
[421432416,1777641213000,-12997.77481258,8.73e-05,2]
[421432415,1777641213000,-300.0,8.729e-05,2]
[421432412,1777641213000,-500.0,8.729e-05,2]
[421432414,1777641213000,-150.0,8.729e-05,2]
[421432413,1777641213000,-309.22518742,8.729e-05,2]
[421432411,1777641213000,-262.0,8.64e-05,2]
[421432439,1777641334000,-500.0,8.729e-05,2]
[421432432,1777641334000,-190.0,8.685e-05,2]
[421432433,1777641334000,-1200.0,8.728e-05,2]
[421432434,1777641334000,-353.3367314,8.729e-05,2]
[421432435,1777641334000,-500.0,8.729e-05,2]
[421432438,1777641334000,-500.0,8.729e-05,2]
[421432437,1777641334000,-500.0,8.729e-05,2]
[421432436,1777641334000,-637.45679082,8.729e-05,2]
[421432440,1777641334000,-500.0,8.729e-05,2]
[421432431,1777641334000,-7675.779307,8.641e-05,2]
[421432442,1777641334000,-500.0,8.729e-05,2]
[421432443,1777641334000,-500.0,8.729e-05,2]
[421432444,1777641334000,-500.0,8.729e-05,2]
[421432446,1777641334000,-500.0,8.729e-05,2]
[421432445,1777641334000,-500.0,8.729e-05,2]
[421432447,1777641334000,-500.0,8.729e-05,2]
[421432449,1777641334000,-500.0,8.729e-05,2]
[421432451,1777641334000,-283.42717078,8.729e-05,2]
[421432450,1777641334000,-500.0,8.729e-05,2]
[421432448,1777641334000,-500.0,8.729e-05,2]
[421432441,1777641334000,-500.0,8.729e-05,2]
[421432460,1777641355000,152.0,0.00010338,7]
[421432461,1777641356000,152.0,0.00010338,7]
[421432462,1777641357000,152.0,0.00010338,7]
[421432468,1777641498000,-262.0,8.63e-05,2]
[421432467,1777641498000,-2500.0,8.63e-05,2]
[421432469,1777641498000,-300.0,8.679e-05,2]
[421432485,1777641519000,-1291.94363995,8.729e-05,2]
[421432481,1777641519000,-1291.94363995,8.729e-05,2]
[421432484,1777641519000,-1291.94363995,8.729e-05,2]
[421432486,1777641519000,-1291.94363995,8.729e-05,2]
[421432483,1777641519000,-1291.94363995,8.729e-05,2]
[421432479,1777641519000,-1291.94363995,8.729e-05,2]
[421432482,1777641519000,-1291.94363995,8.729e-05,2]
[421432480,1777641519000,-1291.94363995,8.729e-05,2]
[421432471,1777641519000,-500.0,8.729e-05,2]
[421432476,1777641519000,-1291.94363995,8.729e-05,2]
[421432477,1777641519000,-1291.94363995,8.729e-05,2]
[421432475,1777641519000,-1291.94363995,8.729e-05,2]
[421432474,1777641519000,-1291.94363995,8.729e-05,2]
[421432472,1777641519000,-368.88828583,8.729e-05,2]
[421432470,1777641519000,-500.0,8.729e-05,2]
[421432488,1777641519000,-1291.94363995,8.729e-05,2]
[421432478,1777641519000,-1291.94363995,8.729e-05,2]
[421432489,1777641519000,-1291.94363995,8.729e-05,2]
[421432473,1777641519000,-500.0,8.729e-05,2]
[421432487,1777641519000,-1291.94363995,8.729e-05,2]
[421432490,1777641519000,-1291.94363995,8.729e-05,2]
[421432506,1777641519000,-1291.94363995,8.729e-05,2]
[421432504,1777641519000,-1291.94363995,8.729e-05,2]
[421432505,1777641519000,-1291.94363995,8.729e-05,2]
[421432503,1777641519000,-1291.94363995,8.729e-05,2]
[421432502,1777641519000,-1291.94363995,8.729e-05,2]
[421432501,1777641519000,-1291.94363995,8.729e-05,2]
[421432500,1777641519000,-1291.94363995,8.729e-05,2]
[421432507,1777641519000,-1291.94363995,8.729e-05,2]
[421432498,1777641519000,-1291.94363995,8.729e-05,2]
[421432496,1777641519000,-1291.94363995,8.729e-05,2]
[421432491,1777641519000,-1291.94363995,8.729e-05,2]
[421432493,1777641519000,-1291.94363995,8.729e-05,2]
[421432492,1777641519000,-1291.94363995,8.729e-05,2]
[421432495,1777641519000,-1291.94363995,8.729e-05,2]
[421432499,1777641519000,-1291.94363995,8.729e-05,2]
[421432497,1777641519000,-1291.94363995,8.729e-05,2]
[421432494,1777641519000,-1291.94363995,8.729e-05,2]
[421432511,1777641520000,-329.19703602,8.729e-05,2]
[421432509,1777641520000,-1291.94363995,8.729e-05,2]
[421432510,1777641520000,-1291.94363995,8.729e-05,2]
[421432508,1777641520000,-1291.94363995,8.729e-05,2]
[421432520,1777641546000,-1291.94363995,8.729e-05,2]
[421432522,1777641546000,-1291.94363995,8.729e-05,2]
[421432519,1777641546000,-1291.94363995,8.729e-05,2]
[421432516,1777641546000,-1291.94363995,8.729e-05,2]
[421432518,1777641546000,-1291.94363995,8.729e-05,2]
[421432515,1777641546000,-1291.94363995,8.729e-05,2]
[421432513,1777641546000,-962.74660393,8.729e-05,2]
[421432514,1777641546000,-1291.94363995,8.729e-05,2]
[421432512,1777641546000,-176.01524314,8.728e-05,2]
[421432523,1777641546000,-1291.94363995,8.729e-05,2]
[421432517,1777641546000,-1291.94363995,8.729e-05,2]
[421432524,1777641546000,-1291.94363995,8.729e-05,2]
[421432521,1777641546000,-1291.94363995,8.729e-05,2]
[421432526,1777641546000,-1291.94363995,8.729e-05,2]
[421432536,1777641546000,-1271.75702058,8.729e-05,2]
[421432533,1777641546000,-1271.75702058,8.729e-05,2]
[421432534,1777641546000,-1271.75702058,8.729e-05,2]
[421432531,1777641546000,-1291.94363995,8.729e-05,2]
[421432532,1777641546000,-390.81612036,8.729e-05,2]
[421432535,1777641546000,-1271.75702058,8.729e-05,2]
[421432529,1777641546000,-1291.94363995,8.729e-05,2]
[421432528,1777641546000,-1291.94363995,8.729e-05,2]
[421432537,1777641546000,-1271.75702058,8.729e-05,2]
[421432527,1777641546000,-1291.94363995,8.729e-05,2]
[421432530,1777641546000,-1291.94363995,8.729e-05,2]
[421432525,1777641546000,-1291.94363995,8.729e-05,2]
[421432539,1777641547000,-1271.75702058,8.729e-05,2]
[421432540,1777641547000,-1250.13736941,8.729e-05,2]
[421432538,1777641547000,-1271.75702058,8.729e-05,2]
[421432541,1777641597000,350.0,8.53e-05,2]
[421432545,1777641641000,-300.0,8.728e-05,2]
[421432542,1777641641000,-2500.0,8.63e-05,2]
[421432544,1777641641000,-1200.0,8.728e-05,2]
[421432543,1777641641000,-300.0,8.728e-05,2]
[421432546,1777641641000,-21.61965117,8.729e-05,2]
[421432550,1777641641000,-1271.75702058,8.729e-05,2]
[421432548,1777641641000,-1271.75702058,8.729e-05,2]
[421432549,1777641641000,-1271.75702058,8.729e-05,2]
[421432547,1777641641000,-1271.75702058,8.729e-05,2]
[421432565,1777641642000,-1271.75702058,8.729e-05,2]
[421432564,1777641642000,-1271.75702058,8.729e-05,2]
[421432561,1777641642000,-1271.75702058,8.729e-05,2]
[421432562,1777641642000,-1271.75702058,8.729e-05,2]
[421432566,1777641642000,-1271.75702058,8.729e-05,2]
[421432560,1777641642000,-1271.75702058,8.729e-05,2]
[421432559,1777641642000,-1271.75702058,8.729e-05,2]
[421432556,1777641642000,-1271.75702058,8.729e-05,2]
[421432557,1777641642000,-1271.75702058,8.729e-05,2]
[421432555,1777641642000,-1271.75702058,8.729e-05,2]
[421432552,1777641642000,-1271.75702058,8.729e-05,2]
[421432553,1777641642000,-1271.75702058,8.729e-05,2]
[421432554,1777641642000,-1271.75702058,8.729e-05,2]
[421432551,1777641642000,-1271.75702058,8.729e-05,2]
[421432558,1777641642000,-1271.75702058,8.729e-05,2]
[421432563,1777641642000,-1271.75702058,8.729e-05,2]
[421432575,1777641642000,-578.32527405,8.729e-05,2]
[421432569,1777641642000,-525.54676061,8.729e-05,2]
[421432567,1777641642000,-500.0,8.729e-05,2]
[421432580,1777641642000,-500.0,8.729e-05,2]
[421432582,1777641642000,-247.33571198,8.729e-05,2]
[421432583,1777641642000,-150.0,8.729e-05,2]
[421432581,1777641642000,-301.73208445,8.729e-05,2]
[421432578,1777641642000,-500.0,8.729e-05,2]
[421432577,1777641642000,-500.0,8.729e-05,2]
[421432584,1777641642000,-9705.86995076,8.73e-05,2]
[421432576,1777641642000,-500.0,8.729e-05,2]
[421432573,1777641642000,-500.0,8.729e-05,2]
[421432574,1777641642000,-500.0,8.729e-05,2]
[421432572,1777641642000,-500.0,8.729e-05,2]
[421432570,1777641642000,-500.0,8.729e-05,2]
[421432568,1777641642000,-500.0,8.729e-05,2]
[421432571,1777641642000,-172.43015538,8.729e-05,2]
[421432579,1777641642000,-500.0,8.729e-05,2]
[421432585,1777641688000,2350.064,8.555e-05,2]
[421432586,1777641688000,151.668,8.555e-05,2]
[421432588,1777641902000,150.0,7.841e-05,2]
[421432590,1777641902000,150.0,8.422e-05,2]
[421432589,1777641902000,150.0,8.132e-05,2]
[421432593,1777641909000,150.0,8.132e-05,2]
[421432594,1777641909000,150.0,8.422e-05,2]
[421432592,1777641909000,150.0,7.841e-05,2]
[421432591,1777641909000,150.0,7.841e-05,2]
[421432596,1777641916000,150.0,7.928e-05,2]
[421432595,1777641916000,150.0,7.841e-05,2]
[421432598,1777641916000,150.0,8.102e-05,2]
[421432597,1777641916000,150.0,8.015e-05,2]
[421432599,1777641916000,150.0,8.19e-05,2]
[421432601,1777641916000,150.0,8.364e-05,2]